bitfinex/quotes_ETHUSD_20220212
["timestamp","ask_amount","ask_price","bid_price","bid_amount"]
[1644628605921,2.64262066,2943.2,2942.1,0.001]
[1644628606121,2.89262066,2943.2,2942.9,0.00852341]
[1644628606320,0.1698,2943.1,2942.9,0.00852341]
[1644628607120,0.1698,2943.1,2942.9,0.00852346]
[1644628607323,0.85028,2943.0,2942.9,0.00852346]
[1644628607521,1.02008,2943.0,2942.9,0.00852346]
[1644628607922,1.8703,2943.0,2942.9,0.00852346]
[1644628608223,0.88264201,2942.6,2942.0,0.00404921]
[1644628608421,0.88264201,2942.6,2942.3,0.03221567]
[1644628609263,1.73294201,2942.6,2941.7,0.00504921]
[1644628609463,0.8502908,2942.4,2941.7,0.00504921]
[1644628609663,0.8502908,2942.4,2942.3,0.00805298]
[1644628610062,0.8503,2942.6,2942.3,0.00805298]
[1644628610264,0.1698,2942.8,2942.3,0.00805298]
[1644628610463,0.1698,2942.8,2941.7,0.00504921]
[1644628610864,1.0199956,2942.8,2942.3,0.00805298]
[1644628611163,0.85207874,2942.7,2942.3,0.00805298]
[1644628611672,0.85207874,2942.7,2941.7,0.00404921]
[1644628612067,0.85207874,2942.7,2942.4,0.00852398]
[1644628612267,4.2503059,2942.5,2941.9,0.03410102]
[1644628612472,0.6588,2942.4,2941.9,0.03410102]
[1644628612669,3.4,2941.9,2941.3,0.03915023]
[1644628612916,3.5698,2941.9,2941.3,0.03915023]
[1644628613715,0.1698,2941.9,2941.3,0.03915023]
[1644628613918,0.95007301,2942.0,2941.3,0.03915023]
[1644628613919,0.8504779,2941.8,2941.3,0.03915023]
[1644628614118,0.8504779,2941.8,2941.3,0.03510102]
[1644628614318,1.11987301,2942.0,2941.3,0.03510102]
[1644628614919,0.95007301,2942.0,2941.3,0.03510102]
[1644628615519,0.95558153,2942.0,2941.3,0.03510102]
[1644628615719,1.80601253,2942.0,2941.3,0.03510102]
[1644628616559,1.80050401,2942.0,2941.3,0.03510102]
[1644628616762,1.80903452,2942.0,2941.5,0.00853209]
[1644628617866,1.80050401,2942.0,2941.3,0.03510102]
[1644628618065,1.80903471,2942.0,2941.6,0.00853199]
[1644628618866,1.80903471,2942.0,2941.3,0.03510102]
[1644628618867,1.80050401,2942.0,2941.3,0.03510102]
[1644628619065,0.95007301,2942.0,2941.4,0.85032]
[1644628619265,0.9586038,2942.0,2941.7,0.00853194]
[1644628619866,0.00853079,2942.0,2941.7,0.00853194]
[1644628620069,3.257,2942.2,2941.3,0.03510102]
[1644628620070,3.257,2942.2,2941.6,0.85026]
[1644628620328,2.83345146,2942.7,2941.4,4.04063882]
[1644628620329,0.81359216,2942.7,2941.4,4.04063882]
[1644628620524,0.00853089,2942.0,2941.7,0.00853189]
[1644628620920,0.0006754,2942.0,2941.8,1.18713275]
[1644628621120,0.0006754,2942.0,2941.9,3.48849149]
[1644628621321,0.0006754,2942.0,2941.9,3.65829149]
[1644628621720,0.79867211,2943.0,2941.9,5.74729149]
[1644628621920,0.005777,2943.1,2942.0,1.17484921]
[1644628622119,0.005777,2943.1,2942.1,4.10044769]
[1644628622320,0.005777,2943.1,2942.8,1.80314158]
[1644628622521,0.005777,2943.1,2942.9,0.001]
[1644628623131,0.41412202,2943.6,2942.9,0.001]
[1644628623425,0.86071634,2944.3,2943.1,1.6992473]
[1644628623625,1.45791484,2944.6,2943.7,1.16814817]
[1644628623626,1.03765054,2944.5,2943.7,1.16814817]
[1644628623824,1.03765054,2944.5,2943.8,0.00504921]
[1644628624075,1.03765054,2944.5,2943.4,0.489]
[1644628624076,1.03765054,2944.5,2943.5,3.5835457]
[1644628624279,1.03765054,2944.5,2943.6,0.001]
[1644628624477,1.03051634,2944.6,2943.6,0.00504921]
[1644628624478,0.1698,2944.6,2943.6,0.00504921]
[1644628624777,0.1698,2944.6,2943.6,1.85470921]
[1644628624977,1.28811484,2945.1,2943.6,1.85470921]
[1644628624978,0.86071634,2944.9,2943.7,4.71661638]
[1644628625178,0.00852872,2944.2,2943.8,0.00504921]
[1644628625376,0.00852872,2944.2,2943.9,0.489]
[1644628625578,0.00852872,2944.2,2944.0,0.1698]
[1644628626181,0.94950201,2944.7,2944.0,0.1698]
[1644628626382,0.94950201,2944.7,2943.9,0.6588]
[1644628626580,0.94950201,2944.7,2943.9,0.66284921]
[1644628627381,1.71040634,2944.8,2944.0,1.10207691]
[1644628627819,2.56003164,2944.8,2944.0,1.10207691]
[1644628628014,0.86071634,2944.7,2944.0,1.10207691]
[1644628628218,1.03051634,2944.7,2944.0,1.10207691]
[1644628629020,0.00853613,2944.5,2944.0,1.10207691]
[1644628629518,0.00853613,2944.5,2943.9,0.00404921]
[1644628629719,1.03051634,2944.7,2943.9,0.00404921]
[1644628629918,0.00853623,2944.4,2943.9,0.00404921]
[1644628630120,0.00853623,2944.4,2943.8,1.69906]
[1644628630420,0.00853623,2944.4,2943.8,1.70006]
[1644628630921,0.00853623,2944.4,2943.8,1.70410921]
[1644628630922,0.96752015,2944.4,2943.8,1.70410921]
[1644628631119,0.00853639,2944.2,2943.8,1.70410921]
[1644628631565,0.00853639,2944.2,2943.8,0.00404921]
[1644628631766,0.1698,2944.1,2943.6,0.00404921]
[1644628631966,0.1698,2944.1,2943.5,0.1698]
[1644628632365,0.00853664,2944.0,2943.5,0.1698]
[1644628633165,1.15358151,2943.9,2943.5,0.1698]
[1644628633367,0.64489495,2943.8,2943.5,0.1698]
[1644628634870,0.00790677,2943.8,2943.5,0.1698]
[1644628635713,1.79847646,2943.9,2943.5,0.1698]
[1644628635913,0.00790677,2943.8,2943.5,0.1698]
[1644628636518,4.21469495,2943.7,2943.2,0.00404921]
[1644628636719,4.21469495,2943.7,2942.9,0.00404921]
[1644628636720,0.65747483,2943.4,2942.9,0.00404921]
[1644628636920,0.64520513,2943.2,2942.5,0.00404921]
[1644628637118,0.64520513,2943.2,2942.3,0.00404921]
[1644628637119,0.8703478,2943.0,2942.3,0.00404921]
[1644628637319,0.1698,2943.1,2942.3,0.00504921]
[1644628637518,0.1698,2943.1,2942.3,0.00404921]
[1644628638319,0.00795009,2942.8,2942.3,0.00504921]
[1644628639364,1.14092269,2943.1,2942.3,0.00504921]
[1644628639565,0.00795024,2942.7,2942.4,0.85005]
[1644628639864,0.00795024,2942.7,2942.5,0.00404921]
[1644628640064,0.00795024,2942.7,2942.4,0.85005]
[1644628640465,0.97112269,2943.1,2942.4,0.85005]
[1644628640466,1.61632782,2943.1,2942.4,0.85005]
[1644628640665,3.4,2943.0,2942.4,0.80409921]
[1644628640871,0.00795024,2942.7,2942.1,0.81329975]
[1644628641274,0.00795024,2942.7,2942.1,0.98309975]
[1644628641471,0.00795024,2942.7,2942.1,0.81329975]
[1644628641674,0.97112269,2943.1,2942.1,0.81329975]
[1644628641871,1.82126189,2943.1,2942.2,1.02950764]
[1644628642272,0.00794761,2942.5,2942.2,1.02950764]
[1644628642921,1.82126189,2943.1,2942.2,1.02950764]
[1644628643320,0.81529769,2943.0,2942.2,1.02950764]
[1644628644520,0.81529769,2943.0,2941.9,0.1698]
[1644628644722,1.0199819,2942.9,2941.8,1.70325536]
[1644628644923,0.81529769,2942.8,2941.8,1.70325536]
[1644628645121,0.1698,2942.7,2941.8,0.00303536]
[1644628645323,0.81529769,2942.6,2941.6,0.1698]
[1644628645522,0.00854546,2942.4,2941.8,0.00854734]
[1644628645723,0.81529769,2942.3,2941.8,1.05910473]
[1644628645923,0.81529769,2942.2,2941.8,0.00854734]
[1644628646122,0.81529769,2942.1,2941.8,0.00854734]
[1644628646329,0.00854546,2942.4,2941.8,0.00854734]
[1644628646564,0.84596687,2942.3,2941.5,1.02109]
[1644628646767,0.00854568,2942.1,2941.8,0.00854669]
[1644628647567,0.00854568,2942.1,2941.8,4.669e-05]
[1644628647768,0.84605399,2942.0,2941.3,0.03510102]
[1644628647968,0.84605399,2942.0,2940.5,1.1355]
[1644628647969,0.85065,2941.8,2941.1,0.03419467]
[1644628648168,5.00485399,2941.7,2941.1,0.03419467]
[1644628648370,0.84605399,2941.6,2941.1,0.03419467]
[1644628648569,0.92516302,2941.4,2941.1,0.03419467]
[1644628648771,1.01585399,2941.3,2941.1,0.03419467]
[1644628648971,0.84605399,2941.2,2940.5,0.85065]
[1644628649368,0.1698,2941.3,2940.5,0.85065]
[1644628649569,0.96130429,2941.2,2940.5,0.85065]
[1644628650171,1.81199279,2941.2,2940.5,0.85065]
[1644628650414,0.96130429,2941.1,2940.5,0.85065]
[1644628650811,0.1698,2941.3,2940.5,0.85065]
[1644628651012,0.95569665,2941.2,2940.5,0.85065]
[1644628651618,0.95569665,2941.2,2940.7,0.008542]
[1644628651815,0.95569665,2941.2,2940.7,0.859142]
[1644628652617,0.95569665,2941.2,2940.7,0.8506]
[1644628652819,0.95569665,2941.2,2940.8,0.0085419]
[1644628653518,0.1698,2941.3,2940.8,0.0085419]
[1644628653717,0.1698,2941.3,2940.7,0.8506]
[1644628653718,1.02912986,2941.2,2940.7,0.8506]
[1644628653918,1.02912986,2941.2,2940.9,0.00854185]
[1644628654573,0.1698,2941.3,2940.9,0.00854185]
[1644628654973,0.1698,2941.3,2940.7,0.8506]
[1644628655174,0.1698,2941.3,2941.0,0.00854174]
[1644628656075,0.1698,2941.3,2940.7,0.8506]
[1644628656275,4.56973369,2941.4,2940.7,0.8506]
[1644628656475,1.02820649,2941.3,2941.0,0.00854169]
[1644628657279,1.02820649,2941.3,2940.8,0.00404761]
[1644628657478,1.02820649,2941.3,2941.0,0.00854169]
[1644628657914,3.4,2941.2,2940.8,0.00404761]
[1644628658113,3.57,2941.2,2940.5,0.00404761]
[1644628658315,3.4,2941.2,2940.5,0.00404761]
[1644628658514,3.3,2941.2,2940.7,0.8506]
[1644628659516,1.17616916,2940.6,2940.5,0.00404761]
[1644628659716,1.17616916,2940.6,2940.2,0.17]
[1644628659717,2.3736384,2940.6,2940.2,0.17]
[1644628660017,0.659,2940.5,2940.2,0.17]
[1644628660829,0.489,2940.5,2940.2,0.17]
[1644628661023,0.08394108,2940.0,2939.4,2.552384]
[1644628661220,0.08394108,2940.0,2939.7,0.01204671]
[1644628661421,0.08394108,2940.0,2939.8,0.17]
[1644628661670,0.08394108,2940.0,2939.8,1.87137]
[1644628661872,0.08394108,2940.0,2939.9,1.16879358]
[1644628663071,0.08394108,2940.0,2939.9,1.16979358]
[1644628671275,0.00854017,2940.7,2940.0,3.4]
[1644628671472,0.00854017,2940.7,2940.1,0.001]
[1644628671675,0.00854017,2940.7,2940.1,3.00192]
[1644628671877,0.17,2941.6,2940.2,0.79]
[1644628672075,0.00854102,2940.7,2940.3,0.00854246]
[1644628672277,0.00854102,2940.7,2940.4,1.9974685]
[1644628672477,0.00854102,2940.7,2940.5,0.001]
[1644628673111,0.17,2941.6,2940.5,0.001]
[1644628673315,0.0085414,2940.7,2940.5,0.00954226]
[1644628673913,0.0085414,2940.7,2940.5,1.71062226]
[1644628674115,0.0085414,2940.7,2940.6,0.001]
[1644628675215,0.0085414,2940.7,2940.6,1.7019]
[1644628675413,0.17,2941.6,2940.6,1.7019]
[1644628675716,0.00828511,2940.8,2940.7,0.00503828]
[1644628675913,0.00828511,2940.8,2940.7,0.001]
[1644628676564,0.17,2941.4,2940.7,0.001]
[1644628676771,0.17,2941.4,2940.7,0.00503828]
[1644628676968,0.00828502,2940.9,2940.7,0.00503828]
[1644628677169,0.00828502,2940.9,2940.7,0.001]
[1644628677567,0.00828502,2940.9,2940.8,0.85044]
[1644628677769,0.17,2941.4,2940.8,0.85044]
[1644628677969,0.00828498,2940.9,2940.8,0.85044]
[1644628678668,0.00828498,2940.9,2940.8,0.80044]
[1644628679068,0.99009496,2941.5,2940.8,0.80044]
[1644628679369,0.0080106,2941.0,2940.9,1.70484602]
[1644628679568,0.0080106,2941.0,2940.9,1.70181]
[1644628680169,0.17,2941.6,2940.9,1.70181]
[1644628680426,3.136,2942.1,2940.9,1.70181]
[1644628680427,0.17,2942.1,2941.3,1.70061]
[1644628680631,3.72600513,2942.5,2941.4,2.1905]
[1644628680632,1.14830276,2942.0,2941.4,2.1905]
[1644628680832,3.0808,2942.5,2941.9,1.029931]
[1644628681027,3.0808,2942.5,2941.4,0.789]
[1644628681028,0.51227205,2941.5,2941.4,1.789]
[1644628681828,0.51227205,2941.5,2941.4,1.9588]
[1644628682229,0.51227205,2941.5,2941.4,2.9275837]
[1644628682831,1.72606728,2942.8,2942.2,1.18467937]
[1644628683031,1.14980213,2942.7,2942.3,0.85011]
[1644628683230,0.64520513,2942.9,2942.3,0.85011]
[1644628683231,1.14980213,2942.6,2942.3,0.85011]
[1644628683430,1.14980213,2942.5,2942.3,0.85011]
[1644628683729,1.14980213,2942.4,2942.3,0.85011]
[1644628683929,0.64520513,2942.9,2942.3,0.85011]
[1644628684165,0.0080278,2942.5,2942.3,0.85011]
[1644628684365,1.15030892,2942.4,2942.3,0.10011]
[1644628685368,0.00802784,2942.5,2942.3,0.10011]
[1644628685566,1.15030892,2942.4,2942.3,0.10011]
[1644628685769,1.15030892,2942.4,2941.8,0.8499962]
[1644628685770,1.15030892,2942.4,2941.8,1.70034]
[1644628686169,1.15030892,2942.4,2941.9,0.001]
[1644628686370,0.64520513,2942.6,2941.9,0.001]
[1644628686371,1.15030892,2942.3,2941.9,0.001]
[1644628686570,1.1583356,2942.2,2941.9,0.001]
[1644628686774,1.15030892,2942.1,2941.9,1.78225865]
[1644628686975,1.15030892,2942.1,2942.0,0.001]
[1644628687374,1.15030892,2942.1,2941.9,0.85116]
[1644628687575,1.15030892,2942.0,2941.9,0.85116]
[1644628688015,1.15030892,2942.1,2941.9,0.85116]
[1644628688215,1.15030892,2942.0,2941.9,0.85116]
[1644628688415,1.15030892,2942.0,2941.9,1.95668596]
[1644628689521,1.15030892,2942.0,2941.9,1.70122]
[1644628689721,1.15030892,2942.0,2941.9,0.85116]
[1644628691023,1.15030892,2942.0,2941.9,1.88596042]
[1644628691224,1.79268817,2942.6,2941.9,1.88596042]
[1644628691225,0.00802692,2942.1,2941.9,1.88596042]
[1644628691431,0.00802692,2942.1,2942.0,0.001]
[1644628691668,1.15655357,2942.1,2942.0,0.001]
[1644628691866,0.00802692,2942.1,2942.0,0.001]
[1644628692067,1.15655357,2942.1,2941.9,1.68596042]
[1644628692272,1.03051634,2942.8,2941.9,1.68596042]
[1644628692273,1.14852665,2942.0,2941.9,3.38589042]
[1644628692468,1.14852665,2942.0,2941.9,8.05258533]
[1644628692668,1.14852665,2942.1,2941.9,8.22238533]
[1644628692870,1.14937382,2942.0,2941.9,8.05258533]
[1644628693068,0.00802683,2942.2,2941.9,8.05258533]
[1644628693269,1.14865699,2942.1,2942.0,0.1699]
[1644628693468,1.14865699,2942.1,2942.0,3.63876431]
[1644628694871,0.00802685,2942.2,2942.0,3.63876431]
[1644628695073,1.14865699,2942.1,2942.0,0.1699]
[1644628696216,0.00802685,2942.2,2942.0,0.1699]
[1644628696416,1.14865699,2942.1,2942.0,0.1699]
[1644628696621,1.14865699,2942.1,2941.9,1.68596042]
[1644628697221,0.64520513,2942.6,2942.0,0.001]
[1644628697421,0.00802687,2942.1,2942.0,0.001]
[1644628698023,1.15608535,2942.1,2942.0,0.001]
[1644628698223,1.14805848,2942.1,2942.0,0.001]
[1644628699269,1.79326361,2942.1,2941.9,0.001]
[1644628699465,1.14805848,2942.0,2941.6,0.001]
[1644628699664,1.14805848,2942.0,2941.4,0.25]
[1644628699864,0.64520513,2942.1,2941.2,0.001]
[1644628699865,1.14805848,2941.9,2941.2,0.001]
[1644628700064,1.14805848,2941.8,2941.4,1.03532058]
[1644628700266,1.14805848,2941.7,2941.5,0.001]
[1644628700467,1.14805848,2942.0,2941.5,0.85132]
[1644628700667,1.14805848,2941.9,2941.5,0.85132]
[1644628700864,1.14805848,2941.8,2941.5,0.85132]
[1644628701064,1.14805848,2941.7,2941.4,0.34331135]
[1644628701265,1.14805848,2941.6,2941.4,0.34331135]
[1644628701564,1.14805848,2941.5,2941.4,0.34331135]
[1644628701768,1.14805848,2941.5,2941.3,0.85028]
[1644628701969,1.14805848,2941.4,2941.3,0.85028]
[1644628705629,1.09805848,2941.4,2941.3,0.85028]
[1644628706230,1.09805848,2941.4,2941.3,0.85128]
[1644628713531,1.09805848,2941.4,2941.1,1.7007]
[1644628713532,1.09805848,2941.4,2941.2,0.001]
[1644628713727,1.09805848,2941.4,2940.8,0.1698]
[1644628713728,1.09805848,2941.4,2940.8,0.001]
[1644628713929,0.1698,2941.3,2940.8,0.001]
[1644628714174,0.64520513,2941.1,2940.8,0.001]
[1644628714367,0.64520513,2941.1,2940.6,0.17]
[1644628714368,0.17,2941.0,2940.6,0.17]
[1644628714568,1.12256215,2941.0,2940.6,0.17]
[1644628714967,0.95256215,2941.0,2940.6,0.17]
[1644628715468,0.00803558,2940.9,2940.6,0.17]
[1644628716071,0.00803558,2940.9,2940.6,0.171]
[1644628716268,1.59776728,2941.0,2940.6,0.17]
[1644628716468,0.00803562,2940.9,2940.6,0.17]
[1644628717471,2.44848838,2941.0,2940.6,0.17]
[1644628717672,0.00803562,2940.9,2940.5,0.00903684]
[1644628718725,0.95256215,2941.0,2940.5,0.001]
[1644628718921,0.00803582,2940.8,2940.6,0.85062]
[1644628719928,0.64520513,2941.1,2940.6,0.85062]
[1644628720122,0.64520513,2941.1,2940.6,1.96342352]
[1644628720123,0.00803582,2940.8,2940.6,1.96342352]
[1644628720421,0.00803582,2940.8,2940.7,0.001]
[1644628720623,0.00803582,2940.8,2940.5,0.00903689]
[1644628721023,0.17,2941.0,2940.5,0.001]
[1644628721227,3.4,2940.9,2940.4,1.00903118]
[1644628721422,3.4,2940.9,2940.5,0.0080368]
[1644628721423,0.00803586,2940.8,2940.5,0.0080368]
[1644628722271,0.00803586,2940.8,2940.4,1.00903118]
[1644628722272,4.04520513,2940.9,2940.4,1.00903118]
[1644628722573,0.00803587,2940.8,2940.5,0.85862681]
[1644628723574,0.81520513,2941.1,2940.5,0.85059]
[1644628723777,0.00803587,2940.8,2940.5,0.85862681]
[1644628724774,0.17,2941.1,2940.5,0.85059]
[1644628724974,0.00803587,2940.8,2940.5,0.85862681]
[1644628725819,1.16213355,2940.7,2940.5,0.85059]
[1644628726019,1.16213355,2940.6,2940.5,0.85059]
[1644628726220,0.00803585,2940.8,2940.5,0.85862679]
[1644628726424,1.16213355,2940.7,2940.5,0.85962679]
[1644628727028,1.16213355,2940.7,2940.5,0.85159]
[1644628727226,1.16213355,2940.6,2940.5,0.85159]
[1644628727427,0.00803589,2940.7,2940.5,0.8596267]
[1644628727727,1.16213355,2940.6,2940.5,0.8596267]
[1644628728128,0.00803589,2940.7,2940.5,0.8596267]
[1644628728327,1.16213355,2940.6,2940.5,0.85159]
[1644628728527,0.0080358,2940.7,2940.5,0.85159]
[1644628728726,1.16213355,2940.6,2940.5,0.85159]
[1644628728933,0.0080358,2940.7,2940.5,0.85159]
[1644628729172,1.16213355,2940.6,2940.5,0.85159]
[1644628729773,0.81520513,2941.1,2940.5,0.85159]
[1644628729774,0.0080358,2940.7,2940.5,0.85159]
[1644628729972,1.16213355,2940.6,2940.5,0.85159]
[1644628730173,0.0080358,2940.7,2940.5,4.91606902]
[1644628730375,0.0080358,2940.7,2940.6,4.55195085]
[1644628730573,0.0080358,2940.7,2940.6,4.72195085]
[1644628730773,1.19087118,2940.7,2940.6,6.42285085]
[1644628730975,0.00803586,2940.8,2940.6,6.42285085]
[1644628731274,0.00803586,2940.8,2940.7,3.4825697]
[1644628731777,0.00803586,2940.8,2940.7,4.4825697]
[1644628731977,3.2449,2941.4,2940.7,4.4825697]
[1644628731978,3.2449,2941.4,2940.8,0.85042]
[1644628732176,0.00803577,2940.9,2940.8,0.85142]
[1644628732377,0.00803577,2940.9,2940.8,0.85042]
[1644628732577,1.19929737,2940.9,2940.8,0.85042]
[1644628732826,0.00803577,2940.9,2940.8,5.19438003]
[1644628733017,0.00803577,2940.9,2940.8,1.81119091]
[1644628733216,1.19124159,2940.9,2940.8,1.81119091]
[1644628733417,0.00803568,2941.0,2940.8,1.81119091]
[1644628733716,1.19024159,2940.9,2940.8,1.81019091]
[1644628733916,1.19024159,2940.9,2940.8,2.81019091]
[1644628734119,1.19024159,2940.9,2940.8,1.81019091]
[1644628734316,1.19024159,2940.9,2940.8,2.81019091]
[1644628734516,3.2449,2941.4,2940.8,1.81019091]
[1644628734517,0.00803568,2941.0,2940.8,1.81019091]
[1644628735520,3.2449,2941.4,2940.8,1.81019091]
[1644628735818,0.00803564,2941.0,2940.8,1.81019091]
[1644628736676,3.2449,2941.4,2940.8,1.81019091]
[1644628736871,0.00803563,2941.0,2940.8,1.81019091]
[1644628737874,3.2449,2941.4,2940.8,1.81019091]
[1644628738073,0.00803563,2941.0,2940.9,5.11331203]
[1644628738272,0.00803563,2941.0,2940.9,1.7007]
[1644628738473,0.00803563,2941.0,2940.9,2.82528406]
[1644628738673,0.00803563,2941.0,2940.9,2.82628406]
[1644628739074,0.64520513,2941.4,2940.9,2.82628406]
[1644628739279,0.64520513,2941.5,2941.1,0.85043]
[1644628740520,0.00803529,2941.4,2941.1,0.85043]
[1644628740922,0.65324042,2941.4,2941.1,0.85043]
[1644628741526,0.64520513,2941.4,2940.9,2.13317933]
[1644628741724,0.65324046,2941.4,2940.9,2.13317933]
[1644628742626,0.64520513,2941.5,2941.1,0.85043]
[1644628743025,0.00803541,2941.3,2941.1,0.85043]
[1644628743829,0.64520513,2941.5,2941.1,0.85043]
[1644628744274,0.17,2941.6,2941.1,0.85043]
[1644628744275,0.00803537,2941.3,2941.1,0.85043]
[1644628744876,0.6532405,2941.3,2940.9,2.13317933]
[1644628745074,0.64520513,2941.2,2940.9,2.13317933]
[1644628745275,0.64520513,2941.2,2940.9,1.00859527]
[1644628745477,0.64520513,2941.2,2940.7,1.70097]
[1644628745674,0.00803536,2941.3,2940.5,0.0080378]
[1644628745675,0.64520513,2941.0,2940.5,0.0080378]
[1644628745874,0.64520513,2941.0,2940.5,1.7091378]
[1644628746077,0.64520513,2941.1,2940.5,1.7091378]
[1644628746277,0.64520513,2941.1,2940.5,1.7011]
[1644628746474,0.64520513,2941.1,2940.5,1.70913695]
[1644628746681,0.00803573,2940.9,2940.6,0.001]
[1644628747475,0.64520513,2941.1,2940.6,0.001]
[1644628747676,0.64520513,2941.1,2940.7,0.85055]
[1644628747928,0.00803573,2940.9,2940.7,0.85055]
[1644628748430,0.00803573,2940.9,2940.7,0.80055]
[1644628748628,0.64520513,2941.0,2940.7,0.80055]
[1644628749029,0.00803572,2940.9,2940.7,0.80055]
[1644628749833,0.64520513,2941.0,2940.7,0.80055]
[1644628750332,0.64520513,2941.0,2940.7,0.80155]
[1644628750333,0.00803572,2940.9,2940.7,0.80155]
[1644628751034,0.64520513,2941.0,2940.7,0.80055]
[1644628751337,0.00803572,2940.9,2940.7,0.80055]
[1644628752482,0.64520513,2941.0,2940.7,0.80055]
[1644628752682,0.00803572,2940.9,2940.7,0.80055]
[1644628753483,1.16021261,2940.8,2940.7,0.80055]
[1644628753683,0.64520513,2941.0,2940.7,0.80055]
[1644628753885,0.00803572,2940.9,2940.7,0.80055]
[1644628754086,1.16021261,2940.8,2940.7,0.80055]
[1644628756329,0.00803576,2940.9,2940.7,0.80055]
[1644628756529,1.16021261,2940.8,2940.7,0.80055]
[1644628757336,0.00803576,2940.9,2940.7,0.80055]
[1644628757534,1.16021261,2940.8,2940.7,0.80055]
[1644628757735,1.16021261,2940.8,2940.7,0.80155]
[1644628758135,1.16021261,2940.8,2940.7,0.80055]
[1644628758338,0.64520513,2940.9,2940.7,0.80055]
[1644628758536,0.65324089,2940.9,2940.7,0.80055]
[1644628759582,0.64520513,2940.9,2940.7,0.80055]
[1644628759785,0.65324085,2940.9,2940.7,0.80055]
[1644628760686,0.64520513,2940.9,2940.7,0.80155]
[1644628760886,0.64520513,2940.9,2940.7,0.80055]
[1644628761088,0.65324085,2940.9,2940.7,0.80055]
[1644628761291,0.00803572,2940.9,2940.8,0.2783614]
[1644628761490,1.16946597,2940.9,2940.8,0.2793614]
[1644628761688,1.16946597,2940.9,2940.8,0.27930245]
[1644628761889,1.16143025,2940.9,2940.8,0.2792908]
[1644628762089,1.16143025,2940.9,2940.8,1.70168]
[1644628762288,0.64520513,2941.1,2940.8,6.81033621]
[1644628762289,0.00803568,2941.0,2940.8,6.81033621]
[1644628762494,0.00803568,2941.0,2940.9,4.08391479]
[1644628762691,0.00803568,2941.0,2940.9,4.083809]
[1644628762692,1.16952787,2941.0,2940.9,4.083809]
[1644628762920,1.16952787,2941.0,2940.9,4.783809]
[1644628763120,1.16149219,2941.0,2940.9,5.083809]
[1644628763321,1.16149219,2941.2,2940.9,5.083809]
[1644628763519,1.16149219,2941.2,2941.0,0.5929211]
[1644628763520,0.00803558,2941.1,2941.0,0.5929211]
[1644628763725,1.16952777,2941.1,2941.0,0.5929211]
[1644628764325,1.16149219,2941.1,2941.0,3.96323066]
[1644628764528,1.16149219,2941.1,2941.0,2.32144832]
[1644628764731,0.64520513,2941.5,2941.3,0.85015]
[1644628764928,0.17,2942.0,2941.3,1.33915]
[1644628764929,0.64520513,2941.6,2941.3,1.33915]
[1644628765133,0.64520513,2941.7,2941.4,0.4708]
[1644628765327,1.28811484,2942.3,2941.7,3.25]
[1644628765531,1.71898693,2942.6,2941.7,3.25]
[1644628765532,1.45801484,2942.6,2941.9,0.84993]
[1644628765729,0.1699,2942.6,2942.1,0.84984]
[1644628765928,0.1699,2942.6,2942.2,0.6588]
[1644628766129,0.1699,2942.6,2942.2,0.9588]
[1644628766328,0.1699,2942.6,2942.2,2.12813912]
[1644628766571,1.28811484,2942.7,2942.3,0.001]
[1644628766777,1.28811484,2942.6,2942.3,0.001]
[1644628766976,1.28811484,2942.7,2942.3,1.70092]
[1644628767177,1.28811484,2942.7,2942.4,0.001]
[1644628767375,0.8430564,2942.8,2942.4,0.001]
[1644628767376,2.13117124,2942.8,2942.4,0.001]
[1644628767976,1.28811484,2942.7,2942.4,0.001]
[1644628768377,0.00803418,2942.7,2942.4,0.85095]
[1644628768577,0.00803418,2942.7,2942.4,1.70087]
[1644628768777,0.00803418,2942.7,2942.5,0.001]
[1644628769176,1.28811484,2943.0,2942.5,0.001]
[1644628769376,1.28811484,2943.0,2942.5,1.70079]
[1644628769377,0.00803418,2942.7,2942.5,1.70079]
[1644628769578,0.00803418,2942.7,2942.6,0.001]
[1644628770428,1.28811484,2943.0,2942.6,0.001]
[1644628770625,3.13258693,2943.3,2942.6,0.001]
[1644628770626,0.00803379,2942.8,2942.6,0.001]
[1644628771522,2.42903688,2943.0,2942.6,0.001]
[1644628771723,0.00803375,2942.8,2942.6,0.001]
[1644628772726,2.42903688,2943.0,2942.6,0.001]
[1644628772934,0.00768897,2942.8,2942.6,0.001]
[1644628774070,1.28811484,2943.0,2942.6,0.85088]
[1644628774270,0.1698,2943.2,2942.6,0.85088]
[1644628774271,0.00768897,2942.8,2942.6,0.85088]
[1644628774470,0.86997569,2942.8,2942.6,0.85088]
[1644628775072,0.86228672,2942.8,2942.6,0.85088]
[1644628775475,0.86997569,2942.8,2942.6,0.85088]
[1644628775972,0.86997569,2942.8,2942.7,0.96504272]
[1644628776177,0.86997569,2942.8,2942.7,0.96604272]
[1644628776377,0.86228672,2942.8,2942.7,0.96604272]
[1644628776977,0.87032043,2942.9,2942.7,0.96604272]
[1644628777177,0.87032043,2942.9,2942.7,0.001]
[1644628777379,0.87032043,2942.9,2942.6,0.85088]
[1644628777577,0.64633767,2942.7,2942.6,0.85088]
[1644628777829,0.64633767,2942.7,2942.6,0.001]
[1644628778223,0.8703404,2942.9,2942.6,0.001]
[1644628778425,0.8703404,2942.9,2942.6,1.16166906]
[1644628778623,0.8703404,2942.9,2942.7,0.85091]
[1644628778824,0.64632086,2942.8,2942.7,0.85091]
[1644628779023,1.28811484,2943.3,2942.7,1.50971]
[1644628779024,0.00805372,2942.9,2942.7,1.50971]
[1644628779225,0.00805372,2942.9,2942.8,0.001]
[1644628779423,0.00805372,2942.9,2942.8,0.49]
[1644628779624,0.00805372,2942.9,2942.8,1.3397287]
[1644628779825,0.00805372,2942.9,2942.8,2.3397287]
[1644628780024,0.86228672,2943.4,2942.8,3.1894387]
[1644628780228,0.86228672,2943.4,2943.0,1.69942]
[1644628780425,0.86228672,2943.5,2943.1,0.001]
[1644628780627,0.86228672,2943.5,2943.0,0.85071]
[1644628780927,0.86228672,2943.4,2943.0,0.85071]
[1644628781328,0.86228672,2943.4,2943.1,0.84971]
[1644628781569,0.00803193,2943.4,2943.1,0.001]
[1644628781774,0.00803193,2943.4,2943.0,0.85071]
[1644628781974,0.00803193,2943.4,2943.2,0.84971]
[1644628782173,0.00803193,2943.4,2943.2,0.85071]
[1644628782373,0.86228672,2943.5,2943.2,0.85071]
[1644628782574,0.00803188,2943.4,2943.2,0.85071]
[1644628782977,0.00803188,2943.4,2943.2,0.001]